Cogmind - Beta 9.4 @@@ ROGUE MODE // 2020.02.04 @ 10:49:53 // AFD2018/Launchers Player: sideriver81 Result: Self-destructed Performance ------------- Evolutions (2) 1000 Regions Visited (7) 1400 Robots Destroyed (27) 135 Value Destroyed (542) 542 Prototype IDs (23) 460 Alien Tech Used (0) 0 Bonus (289) 289 TOTAL SCORE: 3826 Bonus ------- Aligned with FarCom 300 Friendly Fire -11 Cogmind --------- Core Integrity 537/550 Matter 231/350 Energy 108/125 System Corruption 1% Temperature Cool (0) Movement Flying (200) Ox2 Location -8/Materials Parts ------- > --- POWER (2) -------- Light Ion Engine > --- PROPULSION (4) --- Flight Unit > --- UTILITY (3) ------ Heat Sink Small Matter Pod Terrain Scan Processor > --- WEAPON (2) ------- Shock Bomb Launcher Mini Grenade Launcher > --- INVENTORY (4) ---- Shock Bomb Launcher Advanced EMP Blaster Mini Grenade Launcher Missile Launcher Peak State ------------ > --- POWER ------------ Light Ion Engine > --- PROPULSION ------- Flight Unit Flight Unit Flight Unit > --- UTILITY ---------- Heat Sink Small Matter Pod Terrain Scan Processor > --- WEAPON ----------- Advanced EMP Blaster Mini Grenade Launcher > --- INVENTORY -------- EMP Blaster EMP Blaster Shock Bomb Launcher Rocket Launcher [Rating: 14] Favorites ----------- Power Light Ion Engine Engine Light Ion Engine Propulsion Flight Unit Leg Aluminum Leg Flight Unit Flight Unit Utility Heat Sink Device Heat Sink Storage Small Matter Pod Processor Terrain Scan Processor Weapon Mini Grenade Launcher Launcher Mini Grenade Launcher Build | -11 -10 -10 -9 -9 -9 -8 -8 ------- Run | Scr Mat Min Mat Min Exi Min Mat Slots Evolved 4 | . . . 2 . . . 2 Power 1 | . . . . . . . 1 Propulsion 2 | . . . 1 . . . 1 Utility 1 | . . . 1 . . . . Weapon . | . . . . . . . . Parts Attached 25 | . 6 4 5 4 1 . 5 Power 2 | . . 1 . 1 . . . Engine 2 | . . 1 . 1 . . . Core . | . . . . . . . . Reactor . | . . . . . . . . Propulsion 9 | . 4 2 1 1 1 . . Treads . | . . . . . . . . Leg 2 | . 2 . . . . . . Wheel . | . . . . . . . . Hover . | . . . . . . . . Flight 7 | . 2 2 1 1 1 . . Utility 4 | . . 1 2 1 . . . Device 2 | . . 1 1 . . . . Storage 1 | . . . . 1 . . . Processor 1 | . . . 1 . . . . Hackware . | . . . . . . . . Protection . | . . . . . . . . Artifact . | . . . . . . . . Weapon 10 | . 2 . 2 1 . . 5 Energy Gun . | . . . . . . . . Energy Cannon . | . . . . . . . . Ballistic Gun . | . . . . . . . . Ballistic Cannon . | . . . . . . . . Launcher 10 | . 2 . 2 1 . . 5 Special Weapon . | . . . . . . . . Impact Weapon . | . . . . . . . . Slashing Weapon . | . . . . . . . . Piercing Weapon . | . . . . . . . . Special Melee Weapon . | . . . . . . . . Unidentified Prototypes 1 | . . . . . . . 1 Parts Lost 6 | . . . 1 3 . . 2 Power 1 | . . . . 1 . . . Propulsion 4 | . . . 1 1 . . 2 Utility 1 | . . . . 1 . . . Weapon . | . . . . . . . . Highest Loss Streak 2 | . . . 1 2 . . 1 Average Slot Usage (%) 72 | . 28 51 63 89 100 100 73 Engine 7 | . . 1 11 11 11 11 9 Flight 24 | . 9 28 26 24 33 33 20 Device 11 | . . 7 12 19 11 11 9 Storage 3 | . . . . 1 11 11 9 Processor 6 | . . . 2 11 11 11 9 Launcher 17 | . 14 14 11 22 22 22 17 Naked Turns 1 | . 1 . . . . . . Heaviest Build 12 | 3 3 7 8 7 7 7 12 Greatest Support 12 | 3 10 8 12 12 12 8 12 Greatest Overweight (x) 2 | . . . . . . . 2 Average Overweight (x) . | . . . . . . . . Largest Inventory Capacity 4 | 4 4 4 4 4 4 4 4 Average Capacity 4 | 4 4 4 4 4 4 4 4 Most Carried 4 | 4 4 4 4 4 4 4 4 Average Carried 3 | 4 3 3 3 3 3 4 3 Final Capacity 4 | 4 4 4 4 4 4 4 4 Final Carried 4 | 4 4 4 4 4 4 4 4 Class Distribution -------------------- 74% | Scavenger-Mutant 25% | Mutant Dominant Class ---------------- Mutant | -10/Materials Mutant | -10/Mines Scavenger-Mutant | -9/Materials Scavenger-Mutant | -9/Mines Scavenger-Mutant | -9/Exiles Scavenger-Mutant | -8/Mines Scavenger-Mutant | -8/Materials Resources | -11 -10 -10 -9 -9 -9 -8 -8 ----------- Run | Scr Mat Min Mat Min Exi Min Mat Matter Collected 647 | . 130 150 92 215 . . 60 Remotely 93 | . . . . 93 . . . Salvage Created 467 | . 138 45 92 102 . . 90 Parts 30 | . 6 9 5 9 . . 1 Haulers Intercepted . | . . . . . . . . Recyclers Shooed 1 | . 1 . . . . . . Parts Field Recycled . | . . . . . . . . Retrieved Matter . | . . . . . . . . Parts Self-Destructed . | . . . . . . . . Prevented . | . . . . . . . . Kills | -11 -10 -10 -9 -9 -9 -8 -8 ------- Run | Scr Mat Min Mat Min Exi Min Mat Combat Hostiles Destroyed 24 | . 5 6 2 9 . . 2 AOE 24 | . 5 6 2 9 . . 2 Classes Destroyed 7 | . 3 . 1 2 . . 1 Builder 2 | . . . 1 1 . . . Recycler 1 | . 1 . . . . . . Swarmer 13 | . 3 6 . 4 . . . Grunt 7 | . 2 . 2 2 . . 1 Duelist 1 | . . . . 1 . . . Sentry 1 | . . . . . . . 1 Assembled 2 | . . . . 2 . . . Best Kill Streak 6 | . 6 6 2 5 . . 1 Combat Bots Only 6 | . 5 6 2 4 . . 1 Max Kills in Single Turn 3 | . 3 3 2 3 . . 1 Gunslinging . | . . . . . . . . Exploded 3 | . 3 3 2 3 . . 1 Melee . | . . . . . . . . Uniques/NPCs Destroyed . | . . . . . . . . Combat | -11 -10 -10 -9 -9 -9 -8 -8 -------- Run | Scr Mat Min Mat Min Exi Min Mat Damage Taken 396 | . 69 9 52 126 . . 140 Core 87 | . . 9 23 42 . . 13 Absorbed by Shields . | . . . . . . . . Core Remaining (%) 93 | 100 . 96 . . . 83 . Volleys Fired 35 | . 6 2 6 11 . . 10 Largest 2 | . 1 1 1 2 . . 1 Hottest 60 | . 30 30 33 60 . . 36 Shots Fired 37 | . 6 2 6 13 . . 10 Gun . | . . . . . . . . Cannon . | . . . . . . . . Launcher 37 | . 6 2 6 13 . . 10 Special . | . . . . . . . . Kinetic . | . . . . . . . . Thermal . | . . . . . . . . Explosive 26 | . 6 2 1 13 . . 4 Electromagnetic 11 | . . . 5 . . . 6 Robot Hit Streak 4 | . 4 . 2 3 . . 4 Robot Miss Streak 1 | . . . 1 1 . . 1 Penetration Max . | . . . . . . . . Secondary Targets . | . . . . . . . . Shots Hit Robots 14 | . 4 . 2 5 . . 3 Core Hits 37 | . 6 6 7 13 . . 5 Critical Hits . | . . . . . . . . Critical Kills . | . . . . . . . . Critical Parts Destroyed . | . . . . . . . . Melee Attacks . | . . . . . . . . Impact . | . . . . . . . . Slashing . | . . . . . . . . Piercing . | . . . . . . . . Sneak Attacks . | . . . . . . . . Combat Hostiles . | . . . . . . . . Follow-up Attacks . | . . . . . . . . Damage Inflicted 1606 | . 319 218 184 632 . . 253 Guns . | . . . . . . . . Cannons . | . . . . . . . . Explosions 1606 | . 319 218 184 632 . . 253 Melee . | . . . . . . . . Ramming . | . . . . . . . . Kinetic . | . . . . . . . . Thermal . | . . . . . . . . Explosive 1400 | . 319 218 75 632 . . 156 Electromagnetic 206 | . . . 109 . . . 97 Impact . | . . . . . . . . Slashing . | . . . . . . . . Piercing . | . . . . . . . . Highest Corruption 1 | . . . . . . . 1 Average Corruption 1 | . . . . . . . 1 Corruption Purged . | . . . . . . . . Overload Shots . | . . . . . . . . Overflow Damage 32 | . . . 1 31 . . . Projectiles . | . . . . . . . . Explosions 32 | . . . 1 31 . . . Melee . | . . . . . . . . Knockbacks . | . . . . . . . . Impact . | . . . . . . . . Kinetic . | . . . . . . . . Secondary . | . . . . . . . . Self-Inflicted Damage 155 | . 19 . 19 79 . . 38 Shots 7 | . 1 . 1 2 . . 3 Rammed . | . . . . . . . . Targets Rammed . | . . . . . . . . Kicked . | . . . . . . . . Crushed . | . . . . . . . . Highest Temperature 6 | . . . 6 . . . 1 Average Temperature 3 | . . . 6 . . . 1 Received Heat Transfer 72 | . 9 . 18 18 . . 27 Siege Activations . | . . . . . . . . Robots Corrupted . | . . . . . . . . Combat Hostiles . | . . . . . . . . Parts Fried . | . . . . . . . . Impact Corruptions . | . . . . . . . . Robots Melted . | . . . . . . . . Combat Hostiles . | . . . . . . . . Parts Melted . | . . . . . . . . Heat Transferred . | . . . . . . . . Parts Sabotaged . | . . . . . . . . Parts Stolen . | . . . . . . . . Parts Stripped . | . . . . . . . . Power Chain Reactions . | . . . . . . . . Missiles Intercepted . | . . . . . . . . Alert | -11 -10 -10 -9 -9 -9 -8 -8 ------- Run | Scr Mat Min Mat Min Exi Min Mat Peak Influence 267 | . 125 203 183 267 . . 92 Average Influence 112 | . 88 86 118 184 . . 49 Maximum Alert Level 1 | . . 1 . 1 . . . Low Security (%) 80 | 100 100 82 100 49 . 100 100 Level 1 19 | . . 17 . 50 . . . Level 2 . | . . . . . . . . Level 3 . | . . . . . . . . Level 4 . | . . . . . . . . Level 5 . | . . . . . . . . High Security . | . . . . . . . . Max Security . | . . . . . . . . Squads Dispatched . | . . . . . . . . Investigation . | . . . . . . . . Extermination . | . . . . . . . . Reinforcement . | . . . . . . . . Assault . | . . . . . . . . Garrison . | . . . . . . . . Intercept . | . . . . . . . . Construction Impeded . | . . . . . . . . Haulers Reinforced . | . . . . . . . . Stealth | -11 -10 -10 -9 -9 -9 -8 -8 --------- Run | Scr Mat Min Mat Min Exi Min Mat Distress Signals 2 | . . . 1 . . . 1 Communications Jammed . | . . . . . . . . Distress Signals . | . . . . . . . . Times Spotted 35 | . 10 5 7 11 . . 2 Peak Tracking Total 6 | . 6 3 3 4 . . 2 Tactical Retreats 2 | . . . 1 1 . . . Traps | -11 -10 -10 -9 -9 -9 -8 -8 ------- Run | Scr Mat Min Mat Min Exi Min Mat Traps Triggered 1 | . 1 . . . . . . Indirectly . | . . . . . . . . Trap Hack Attempts . | . . . . . . . . Triggered . | . . . . . . . . Disarmed . | . . . . . . . . Reprogrammed . | . . . . . . . . Reused . | . . . . . . . . Traps Extracted . | . . . . . . . . Installed . | . . . . . . . . Triggered . | . . . . . . . . Machines | -11 -10 -10 -9 -9 -9 -8 -8 ---------- Run | Scr Mat Min Mat Min Exi Min Mat Machines Disabled 4 | . . . 2 1 . . 1 Max in Single Turn 1 | . . . 1 1 . . 1 Machines Sabotaged . | . . . . . . . . Garrisons Compromised . | . . . . . . . . Overloaded Fab Kills . | . . . . . . . . Fab Network Shutdowns . | . . . . . . . . Hacking | -11 -10 -10 -9 -9 -9 -8 -8 --------- Run | Scr Mat Min Mat Min Exi Min Mat Machines Accessed 6 | . 1 . 2 . 2 . 1 Terminals 3 | . . . 2 . . . 1 Fabricators . | . . . . . . . . Repair Stations . | . . . . . . . . Recycling Units 1 | . 1 . . . . . . Scanalyzers . | . . . . . . . . Garrison Access . | . . . . . . . . Total Hacks 17 | . 2 . 5 . 5 . 5 Successful 13 | . 2 . 4 . 5 . 2 Failed 4 | . . . 1 . . . 3 Catastrophic . | . . . . . . . . Database Lockouts . | . . . . . . . . Manual 10 | . . . 4 . 1 . 5 Terminals 10 | . . . 5 . . . 5 Fabricators . | . . . . . . . . Repair Stations . | . . . . . . . . Recycling Units 2 | . 2 . . . . . . Scanalyzers . | . . . . . . . . Garrison Access . | . . . . . . . . Terminal Hacks 8 | . . . 2 . 5 . 1 Record 4 | . . . . . 4 . . Branch Access Points 1 | . . . 1 . . . . Locate Traps 2 | . . . 1 . . . 1 EX-Prototype ID Bank 1 | . . . . . 1 . . Fabricator Hacks . | . . . . . . . . Repair Station Hacks . | . . . . . . . . Recycling Unit Hacks 2 | . 2 . . . . . . Process 1 | . 1 . . . . . . Retrieve Matter 1 | . 1 . . . . . . Scanalyzer . | . . . . . . . . Garrison Access Hacks . | . . . . . . . . Unauthorized Hacks 10 | . . . 5 . . . 5 Terminals 3 | . . . 2 . . . 1 Assimilate 1 | . . . 1 . . . . Botnet 2 | . . . 1 . . . 1 Fabricators . | . . . . . . . . Repair Stations . | . . . . . . . . Recycling Units . | . . . . . . . . Scanalyzers . | . . . . . . . . Garrison Access . | . . . . . . . . Data Cores Recovered . | . . . . . . . . Used . | . . . . . . . . Hacking Detections 3 | . 1 . 1 . . . 1 Full Trace Events . | . . . . . . . . Feedback Events . | . . . . . . . . Feedback Blocked . | . . . . . . . . Robot Schematics Acquired . | . . . . . . . . Robots Built . | . . . . . . . . Matter . | . . . . . . . . Time . | . . . . . . . . Total Robot Build Rating . | . . . . . . . . Part Schematics Acquired . | . . . . . . . . Parts Built . | . . . . . . . . Matter . | . . . . . . . . Time . | . . . . . . . . Total Part Build Rating . | . . . . . . . . Parts Repaired . | . . . . . . . . Time . | . . . . . . . . Parts Recycled . | . . . . . . . . Recycled Matter 13 | . 13 . . . . . . Retrieved Matter 13 | . 13 . . . . . . Retrieved Components . | . . . . . . . . Parts Scanalyzed . | . . . . . . . . Part Schematics Acquired . | . . . . . . . . Parts Damaged . | . . . . . . . . Bothacking | -11 -10 -10 -9 -9 -9 -8 -8 ------------ Run | Scr Mat Min Mat Min Exi Min Mat Used RIF Installer . | . . . . . . . . Robots Hacked . | . . . . . . . . Non-combat . | . . . . . . . . Combat . | . . . . . . . . Robot Hacks Applied . | . . . . . . . . Relay Couplers Released . | . . . . . . . . Robots Rewired . | . . . . . . . . Allies Hacked . | . . . . . . . . Hacks Repelled . | . . . . . . . . Allies | -11 -10 -10 -9 -9 -9 -8 -8 -------- Run | Scr Mat Min Mat Min Exi Min Mat Total Allies 6 | . . 3 1 2 . . . Largest Group 3 | . . 3 1 2 2 . . Highest-Rated Group 58 | . . 40 10 58 58 . . Highest-Rated Ally 31 | . . 16 10 31 31 . . Total Orders . | . . . . . . . . Ally Attacks . | . . . . . . . . Total Damage . | . . . . . . . . Kills . | . . . . . . . . Allies Corrupted . | . . . . . . . . Allies Melted . | . . . . . . . . Intel | -11 -10 -10 -9 -9 -9 -8 -8 ------- Run | Scr Mat Min Mat Min Exi Min Mat Robot Analysis Total . | . . . . . . . . Derelict Logs Recovered . | . . . . . . . . Drone Launches . | . . . . . . . . Drone Recoveries . | . . . . . . . . Exploration | -11 -10 -10 -9 -9 -9 -8 -8 ------------- Run | Scr Mat Min Mat Min Exi Min Mat Turns Passed 761 | 1 106 111 84 208 116 31 104 Spaces Moved 1411 | 1 122 248 140 424 309 83 84 Core 35 | 1 34 . . . . . . Treads . | . . . . . . . . Legs 21 | . 21 . . . . . . Wheels . | . . . . . . . . Hover . | . . . . . . . . Flight 1355 | . 67 248 140 424 309 83 84 Fastest Speed 34 | 50 37 37 34 34 34 37 34 Average Speed 39 | 50 56 39 36 36 36 37 48 Slowest Speed 200 | 50 120 40 37 37 37 37 200 Overloaded Moves . | . . . . . . . . Propulsion Burnouts . | . . . . . . . . Robots Hopped 4 | . . . . 4 . . . Cave-ins Triggered . | . . . . . . . . Exploration Rate (%) 36 | 2 24 68 18 73 70 29 11 Regions Visited 7 Branch Regions 4 Pre-discovered Areas 2 | . . . . 1 1 . . Known Exits Taken 1 | . . . 1 . . . . Unknown Exits Taken 6 | 1 1 1 . 1 1 1 . Scrap Searched . | . . . . . . . . Spaces Dug . | . . . . . . . . Terrain Destroyed 217 | . 34 8 10 127 . . 38 Melee . | . . . . . . . . Projectile . | . . . . . . . . AOE 217 | . 34 8 10 127 . . 38 Actions | -11 -10 -10 -9 -9 -9 -8 -8 --------- Run | Scr Mat Min Mat Min Exi Min Mat Total 1564 | 1 150 259 166 459 310 82 137 Wait 72 | . 14 . 7 22 . . 29 Move 1396 | . 121 247 139 415 308 82 84 Hop 4 | . . . . 4 . . . Pick Up 14 | . 1 2 5 2 1 . 3 Fast Attach 14 | . 5 2 2 3 . . 2 Attach 4 | . . . 2 1 1 . . Detach 1 | . . . . . . . 1 Swap 7 | . 1 2 1 . . . 3 Drop 17 | 1 2 4 4 1 . . 5 Fire 35 | . 6 2 6 11 . . 10 Melee . | . . . . . . . . Ram . | . . . . . . . . Kick . | . . . . . . . . Crush . | . . . . . . . . Escape Stasis . | . . . . . . . . Rewire . | . . . . . . . . Trap . | . . . . . . . . Miscellaneous . | . . . . . . . . Route ------- -11/Scrapyard -10/Materials -10/Mines -9/Materials -9/Mines (discovered 2 exits: *Mat / *Exi) -9/Exiles -8/Mines -8/Materials History --------- Turn | Location | Event 2 | -11/Scrapyard | Discovered new exit (range 0) 2 | -11/Scrapyard | Entered Materials 75 | -10/Materials | Discovered new exit (range 16) 108 | -10/Materials | Entered Mines 144 | -10/Mines | Joined a pair of Derelicts in attacking an 0b10 outpost 162 | -10/Mines | Assisted by bots powering up and referring to "LRC-V3" 170 | -10/Mines | Found a hidden stash of uninstalled traps 192 | -10/Mines | Discovered new exit (range 11) 219 | -10/Mines | Entered Materials 219 | -9/Materials | Evolved 2 slots: Propulsion x1, Utility x1 295 | -9/Materials | Identified exit to Mines 303 | -9/Materials | Entered Mines 315 | -9/Mines | Received a Rocket Launcher from a helpful Derelict 330 | -9/Mines | Assembled infested the area 418 | -9/Mines | Discovered new exit (range 10) 451 | -9/Mines | Learned location of Storage (-7) 493 | -9/Mines | Deemed a non-threat by the Exiles lab entrance 493 | -9/Mines | Discovered new exit (range 5) 505 | -9/Mines | Build established: Scavenger-Mutant 511 | -9/Mines | Entered Exiles 511 | -9/Exiles | Accompanied by 2 allies 522 | -9/Exiles | Met 8R-AWN 527 | -9/Exiles | Met EX-HEX 541 | -9/Exiles | Led the pair of lost Derelicts to a safe place 545 | -9/Exiles | Met EX-DEC 566 | -9/Exiles | Learned location of Zion (-6) 572 | -9/Exiles | Met EX-BIN 578 | -9/Exiles | Aligned with FarCom system 578 | -9/Exiles | Given EX-Vault access code 587 | -9/Exiles | Opened EX-Vault 599 | -9/Exiles | Warned to stay clear of 0b10 Research branches 623 | -9/Exiles | Discovered new exit (range 14) 627 | -9/Exiles | Entered Mines 655 | -8/Mines | Discovered new exit (range 10) 658 | -8/Mines | Entered Materials 658 | -8/Materials | Evolved 2 slots: Power x1, Propulsion x1 762 | -8/Materials | Self-destructed Last Messages --------------- 00677_ Current location identified: Materials >>Traps(Locate) No traps found in local area. >>Trojan(Botnet) Trojan loaded successfully. Testing... Terminal linked with 0 systems. Awaiting botnet instructions. 00685_ Door malfunctions. 00686_ A-02 Transporter sends out distress signal. 00705_ G-47 Trooper destroyed. 00706_ The unstable cave ceiling collapses. 00707_ Flight Unit destroyed. 00708_ K-01 Serf collects debris. 00717_ K-01 Serf cleans the Fusion Modulator. 00721_ K-01 Serf collects debris. 00743_ Door malfunctions. 00745_ Flight Unit destroyed. 00750_ Y-45 Defender destroyed. 00760_ Acquired 60 matter. Map ----- +----------------------------------------------------+ | | | | | | | | | | | | | | | | | ??????????????????????????????? | | ??????????????????????????????? | | ??????????????????????????????? | | ??????????????????????????????? | | ??????????????????????????????? | | ??????????????????????????????? | | ??????????????????????????????? | | ???????????????????###????????? | | ?????????????????# ????????? | | ?????????????????#] ???????? | | ?????????????????# ""?####??? | | ?????????????????# """# #??? | | ?????????????????# ] """# #??? | | ?????????????????# / #??? | | ?????????????????######## #??? | | ????????? ???????###????# #??? | | ????????? ??????+ ??#! #??? | | ????????? ??????# """ #@ #??? | | ????????? ??????# """ / #??? | | ?????????# ??????# """ # #??? | | ?????????# ??????# # #??? | | ????###??# ??????# ]?# #??? | | ?????""??# ???#?######### #??? | | ??????% ## ##?# + #??? | | ??????? # #?# ] # #??? | | ??????? / #?# # #??? | | ????????# ###] ?# #??? | | ????????# #####?# #??? | | ????????# #### #??? | | ????????# # #??? | | ????????# % #??? | | ????????# +#######??? | | ????????# ???????? | | ????????# ?????? | | ????????# ## # ] #????? | | ????????# ###?# #????? | | ????????# #???# """ #????? | | ?######## #???# """"" #????? | | ?# # #???# """"" #????? | | ?#]] + #???# """"" #????? | | ?#]] # #???# ???? #????? | | ?#] + #???###??????#????? | +----------------------------------------------------+ Best States ------------- Heat Dissipation 31 Energy Generation 10 Energy Capacity 125 Matter Stores 291 Matter Capacity 350 Sight Range 16 Terrain Scan Density 85 Evasion (%) 63 Item Schematics ----------------- None Robot Schematics ------------------ None Fabricated ------------ Nothing Alien Tech Used ----------------- None Achievements -------------- None Challenges ------------ None Game ------ Seed PhaseCloakTorch Manual? 0 Play Time 00:20:10 Cumulative 297.9 hours Start 2020.02.04 @ 10:32:20 End 2020.02.04 @ 10:49:53 Sessions 1 Manual Loads 0 Difficulty Rogue Special Mode AFD2018/Launchers Game No. 117 Rogue 39 Adventurer 48 Explorer 30 Win Type - Total 46 Types 30/5/4/2/2/1/2 Lore% 98 Gallery% 100 Achievement% 88 Wizard Run 0 Options --------- ASCII 0 Keyboard 0 Movement Numpad Keybinds 1 Fullscreen 0 Font 18/Terminus Map View 76x50 Tactical HUD 1 Map Filters NONE Filters NONE Steam 1 RUN: 03689182-0b70-4635-aecf-28414bd8ef06